[Event "*** Titled Tuesday Blitz"]
[Site "Chess.com"]
[Date "2020.04.14"]
[Round "1"]
[White "imdvb6307"]
[Black "AvitalBor"]
[Result "0-1"]
[WhiteElo "2384"]
[BlackElo "2736"]
[TimeControl "180+1"]
[EndTime "10:07:04 PDT"]
[Termination "AvitalBor won on time"]

1. c4 {[%clk 0:02:58.2]} 1... b6 {[%clk 0:02:58.3]} 2. Nc3 {[%clk 0:02:55]} 2...
Bb7 {[%clk 0:02:58.3]} 3. e4 {[%clk 0:02:53.9]} 3... e6 {[%clk 0:02:58]} 4. d4
{[%clk 0:02:47.3]} 4... Bb4 {[%clk 0:02:57.7]} 5. f3 {[%clk 0:02:42.8]} 5... f5
{[%clk 0:02:57.7]} 6. exf5 {[%clk 0:02:24.6]} 6... Nh6 {[%clk 0:02:56.7]} 7. Bd3
{[%clk 0:01:45.1]} 7... Nxf5 {[%clk 0:02:35.4]} 8. Bxf5 {[%clk 0:01:38.7]} 8...
exf5 {[%clk 0:02:35.9]} 9. Qe2+ {[%clk 0:01:31.1]} 9... Kf7 {[%clk 0:02:25.5]}
10. Qd3 {[%clk 0:01:27.1]} 10... Re8+ {[%clk 0:02:18.8]} 11. Ne2 {[%clk
0:01:21]} 11... Qh4+ {[%clk 0:02:10.1]} 12. g3 {[%clk 0:01:10.4]} 12... Bxc3+
{[%clk 0:02:06.8]} 13. bxc3 {[%clk 0:01:07.7]} 13... Qf6 {[%clk 0:02:06.9]} 14.
O-O {[%clk 0:01:00.2]} 14... Nc6 {[%clk 0:02:06.6]} 15. Nf4 {[%clk 0:00:55.5]}
15... Na5 {[%clk 0:02:05.4]} 16. Nd5 {[%clk 0:00:45.7]} 16... Bxd5 {[%clk
0:02:05]} 17. cxd5 {[%clk 0:00:45.3]} 17... Kg8 {[%clk 0:02:03]} 18. Bf4 {[%clk
0:00:39.8]} 18... c6 {[%clk 0:02:02.2]} 19. dxc6 {[%clk 0:00:37.8]} 19... dxc6
{[%clk 0:01:55.8]} 20. Be5 {[%clk 0:00:33.5]} 20... Qf7 {[%clk 0:01:55.9]} 21.
a4 {[%clk 0:00:28.7]} 21... Rad8 {[%clk 0:01:54.8]} 22. Qc2 {[%clk 0:00:12.6]}
22... h6 {[%clk 0:01:52]} 23. Rae1 {[%clk 0:00:11]} 23... Nc4 {[%clk 0:01:49.7]}
24. h4 {[%clk 0:00:08.7]} 24... Nxe5 {[%clk 0:01:42.3]} 25. Rxe5 {[%clk
0:00:04.5]} 25... Rxe5 {[%clk 0:01:41.3]} 26. dxe5 {[%clk 0:00:03.9]} 26... f4
{[%clk 0:01:41.5]} 27. gxf4 {[%clk 0:00:03]} 27... Qxf4 {[%clk 0:01:38.4]} 28.
Qh2 {[%clk 0:00:02.5]} 28... Qe3+ {[%clk 0:01:33.5]} 29. Kh1 {[%clk 0:00:02.4]}
29... Rd5 {[%clk 0:01:18.1]} 30. Qg3 {[%clk 0:00:02.2]} 30... Qxe5 {[%clk
0:01:16.6]} 31. Qxe5 {[%clk 0:00:02]} 31... Rxe5 {[%clk 0:01:17.5]} 32. Rd1
{[%clk 0:00:02.2]} 32... Re3 {[%clk 0:01:05.5]} 33. c4 {[%clk 0:00:01.6]} 33...
Rxf3 {[%clk 0:01:04.3]} 34. Rd8+ {[%clk 0:00:01.6]} 34... Kh7 {[%clk 0:01:03.9]}
35. Rd7 {[%clk 0:00:01.7]} 35... Rf4 {[%clk 0:01:04.1]} 36. h5 {[%clk
0:00:01.8]} 36... Rxc4 {[%clk 0:01:02.3]} 37. Rxa7 {[%clk 0:00:01.6]} 37... Rh4+
{[%clk 0:01:02.2]} 38. Kg2 {[%clk 0:00:01.9]} 38... Rxh5 {[%clk 0:01:03.1]} 39.
Ra6 {[%clk 0:00:01.8]} 39... Ra5 {[%clk 0:00:59.2]} 40. Rxb6 {[%clk 0:00:01.6]}
40... Rxa4 {[%clk 0:00:59.5]} 41. Rxc6 {[%clk 0:00:02.2]} 41... h5 {[%clk
0:00:59.2]} 42. Kg3 {[%clk 0:00:02.7]} 42... g6 {[%clk 0:00:59.1]} 43. Kh3
{[%clk 0:00:03]} 43... Kh6 {[%clk 0:00:59.2]} 44. Rc5 {[%clk 0:00:03.3]} 44...
Ra3+ {[%clk 0:00:57.5]} 45. Kg2 {[%clk 0:00:02.2]} 45... h4 {[%clk 0:00:57.7]}
46. Kh2 {[%clk 0:00:01.8]} 46... g5 {[%clk 0:00:57.6]} 0-1

[Event "*** Titled Tuesday Blitz"]
[Site "Chess.com"]
[Date "2020.04.14"]
[Round "1"]
[White "Chess_Boxer123"]
[Black "Azerichess"]
[Result "0-1"]
[WhiteElo "2501"]
[BlackElo "3002"]
[TimeControl "180+1"]
[EndTime "10:07:05 PDT"]
[Termination "Azerichess won by resignation"]

1. Nf3 {[%clk 0:02:59]} 1... Nf6 {[%clk 0:02:58.7]} 2. b3 {[%clk 0:02:59]} 2...
d5 {[%clk 0:02:58.6]} 3. Bb2 {[%clk 0:02:59.2]} 3... b6 {[%clk 0:02:57.8]} 4. g3
{[%clk 0:02:58.8]} 4... Bb7 {[%clk 0:02:57.9]} 5. Bg2 {[%clk 0:02:59.3]} 5... c5
{[%clk 0:02:58.4]} 6. O-O {[%clk 0:02:59.7]} 6... Nc6 {[%clk 0:02:59]} 7. d3
{[%clk 0:02:58.8]} 7... g6 {[%clk 0:02:56.5]} 8. e4 {[%clk 0:02:56.9]} 8... d4
{[%clk 0:02:53.4]} 9. a4 {[%clk 0:02:55.8]} 9... Bg7 {[%clk 0:02:52.8]} 10. h3
{[%clk 0:02:55.4]} 10... O-O {[%clk 0:02:52.6]} 11. Nbd2 {[%clk 0:02:56]} 11...
e5 {[%clk 0:02:48.6]} 12. Nc4 {[%clk 0:02:54.7]} 12... Qc7 {[%clk 0:02:47.6]}
13. Nfd2 {[%clk 0:02:54.7]} 13... a6 {[%clk 0:02:41.1]} 14. Na3 {[%clk
0:02:54.3]} 14... Rae8 {[%clk 0:02:29.6]} 15. Bc1 {[%clk 0:02:49.4]} 15... Kh8
{[%clk 0:02:19.9]} 16. Ndc4 {[%clk 0:02:46.7]} 16... h6 {[%clk 0:02:11.6]} 17.
Bd2 {[%clk 0:02:43.5]} 17... Kh7 {[%clk 0:02:10.5]} 18. Kh2 {[%clk 0:02:26.5]}
18... Bc8 {[%clk 0:02:07.7]} 19. f4 {[%clk 0:02:14.4]} 19... exf4 {[%clk
0:02:00.9]} 20. Bxf4 {[%clk 0:02:10.9]} 20... Qd8 {[%clk 0:02:01]} 21. e5 {[%clk
0:01:52.2]} 21... Nd5 {[%clk 0:01:58.6]} 22. Nd6 {[%clk 0:01:52.3]} 22... Be6
{[%clk 0:01:54.5]} 23. Nxe8 {[%clk 0:01:51.5]} 23... Rxe8 {[%clk 0:01:54.1]} 24.
Nc4 {[%clk 0:01:52.1]} 24... Re7 {[%clk 0:01:52.2]} 25. Nd6 {[%clk 0:01:39]}
25... Nxe5 {[%clk 0:01:46.7]} 26. Nc4 {[%clk 0:01:26.6]} 26... Nxc4 {[%clk
0:01:43.3]} 27. bxc4 {[%clk 0:01:27.5]} 27... Ne3 {[%clk 0:01:41.8]} 28. Qd2
{[%clk 0:01:16]} 28... Nxf1+ {[%clk 0:01:38.7]} 29. Rxf1 {[%clk 0:01:15.4]}
29... Bd7 {[%clk 0:01:22.1]} 30. h4 {[%clk 0:01:09.4]} 30... Qe8 {[%clk
0:01:21.2]} 31. Rf2 {[%clk 0:00:51.8]} 31... Bxa4 {[%clk 0:01:19]} 32. h5 {[%clk
0:00:50.3]} 32... Bc6 {[%clk 0:01:17.3]} 33. hxg6+ {[%clk 0:00:50.1]} 33... fxg6
{[%clk 0:01:17]} 34. Bd5 {[%clk 0:00:47.6]} 34... Qd7 {[%clk 0:01:13.1]} 35. Bg2
{[%clk 0:00:20.2]} 35... Bxg2 {[%clk 0:01:12.1]} 36. Rxg2 {[%clk 0:00:19.6]}
36... a5 {[%clk 0:01:12]} 37. Re2 {[%clk 0:00:18.3]} 37... a4 {[%clk 0:01:11.2]}
38. Qe1 {[%clk 0:00:15.8]} 38... Rxe2+ {[%clk 0:01:10.2]} 39. Qxe2 {[%clk
0:00:16.7]} 39... a3 {[%clk 0:01:10.4]} 40. Qd1 {[%clk 0:00:15.6]} 40... b5
{[%clk 0:01:04.4]} 41. cxb5 {[%clk 0:00:13.3]} 41... Qxb5 {[%clk 0:01:04.9]} 42.
Qe2 {[%clk 0:00:12.1]} 42... Qb7 {[%clk 0:00:56.1]} 43. Qg2 {[%clk 0:00:06]}
43... Qxg2+ {[%clk 0:00:54.5]} 44. Kxg2 {[%clk 0:00:06.9]} 44... a2 {[%clk
0:00:54.8]} 0-1

[Event "*** Titled Tuesday Blitz"]
[Site "Chess.com"]
[Date "2020.04.14"]
[Round "1"]
[White "PowerThinking2650"]
[Black "Tashik"]
[Result "0-1"]
[WhiteElo "2182"]
[BlackElo "2570"]
[TimeControl "180+1"]
[EndTime "10:07:05 PDT"]
[Termination "Tashik won on time"]

1. e4 {[%clk 0:02:56.8]} 1... e5 {[%clk 0:02:59]} 2. Nf3 {[%clk 0:02:51.4]} 2...
Nc6 {[%clk 0:02:59.4]} 3. Nc3 {[%clk 0:02:51.2]} 3... Nf6 {[%clk 0:02:58.9]} 4.
d4 {[%clk 0:02:51.3]} 4... exd4 {[%clk 0:02:59]} 5. Nxd4 {[%clk 0:02:52.2]} 5...
Bb4 {[%clk 0:02:59.4]} 6. Nxc6 {[%clk 0:02:52.2]} 6... bxc6 {[%clk 0:03:00.3]}
7. Bd3 {[%clk 0:02:52.3]} 7... O-O {[%clk 0:03:00.3]} 8. O-O {[%clk 0:02:50.5]}
8... Re8 {[%clk 0:03:00.9]} 9. Bg5 {[%clk 0:02:49]} 9... h6 {[%clk 0:03:00.7]}
10. Bh4 {[%clk 0:02:48.3]} 10... d5 {[%clk 0:03:00.1]} 11. exd5 {[%clk
0:02:27.3]} 11... g5 {[%clk 0:02:59.6]} 12. Bg3 {[%clk 0:02:13.9]} 12... cxd5
{[%clk 0:02:59.7]} 13. Nb5 {[%clk 0:02:02.4]} 13... Ba5 {[%clk 0:02:52.6]} 14.
h4 {[%clk 0:01:51.1]} 14... Bg4 {[%clk 0:02:45.7]} 15. Qc1 {[%clk 0:01:44.9]}
15... Nh5 {[%clk 0:02:43.3]} 16. Bh2 {[%clk 0:01:26.8]} 16... a6 {[%clk
0:02:15.2]} 17. Nd4 {[%clk 0:01:22.4]} 17... Qf6 {[%clk 0:02:15.8]} 18. c3
{[%clk 0:01:04.3]} 18... c5 {[%clk 0:02:09.6]} 19. Nb3 {[%clk 0:01:01.1]} 19...
Bb6 {[%clk 0:02:09.4]} 20. c4 {[%clk 0:01:00.5]} 20... Nf4 {[%clk 0:01:27.2]}
21. Bxf4 {[%clk 0:00:50.9]} 21... gxf4 {[%clk 0:01:28.1]} 22. g3 {[%clk
0:00:08.8]} 22... Be6 {[%clk 0:00:45.8]} 23. Nd2 {[%clk 0:00:04.6]} 23... Qd4
{[%clk 0:00:36.4]} 24. Qc2 {[%clk 0:00:04]} 24... fxg3 {[%clk 0:00:30.6]} 25.
Nf3 {[%clk 0:00:04.1]} 25... Qg4 {[%clk 0:00:19.8]} 26. fxg3 {[%clk 0:00:04.3]}
26... dxc4 {[%clk 0:00:20.1]} 27. Be4 {[%clk 0:00:02.6]} 27... Rad8 {[%clk
0:00:14.3]} 28. Kh2 {[%clk 0:00:01.8]} 28... f5 {[%clk 0:00:10.3]} 0-1

[Event "*** Titled Tuesday Blitz"]
[Site "Chess.com"]
[Date "2020.04.14"]
[Round "1"]
[White "nonscitis"]
[Black "LimeInTheCoconut"]
[Result "1-0"]
[WhiteElo "2687"]
[BlackElo "2338"]
[TimeControl "180+1"]
[EndTime "10:07:07 PDT"]
[Termination "nonscitis won by resignation"]

1. d4 {[%clk 0:03:00]} 1... Nf6 {[%clk 0:02:58.4]} 2. Nf3 {[%clk 0:02:58.5]}
2... e6 {[%clk 0:02:58]} 3. c4 {[%clk 0:02:57.3]} 3... b6 {[%clk 0:02:57.3]} 4.
g3 {[%clk 0:02:55.8]} 4... Bb7 {[%clk 0:02:57.1]} 5. Bg2 {[%clk 0:02:52.9]} 5...
Be7 {[%clk 0:02:57.6]} 6. O-O {[%clk 0:02:51.2]} 6... O-O {[%clk 0:02:57.2]} 7.
d5 {[%clk 0:02:51]} 7... exd5 {[%clk 0:02:56.5]} 8. Nh4 {[%clk 0:02:50.4]} 8...
c6 {[%clk 0:02:53.6]} 9. cxd5 {[%clk 0:02:46.6]} 9... Nxd5 {[%clk 0:02:53.4]}
10. Nf5 {[%clk 0:02:46]} 10... Nc7 {[%clk 0:02:53.9]} 11. e4 {[%clk 0:02:44.9]}
11... d5 {[%clk 0:02:52.9]} 12. Nc3 {[%clk 0:02:19.8]} 12... Bf6 {[%clk
0:02:51.8]} 13. exd5 {[%clk 0:02:12.3]} 13... cxd5 {[%clk 0:02:52.7]} 14. Qg4
{[%clk 0:02:05.3]} 14... g6 {[%clk 0:02:31.1]} 15. Rd1 {[%clk 0:01:45.9]} 15...
Nba6 {[%clk 0:02:08.1]} 16. Bf4 {[%clk 0:01:32.7]} 16... Kh8 {[%clk 0:01:35.8]}
17. Nd6 {[%clk 0:01:29.7]} 17... Bc6 {[%clk 0:01:10]} 18. Nxd5 {[%clk
0:01:27.9]} 18... Nxd5 {[%clk 0:01:06.4]} 19. Bxd5 {[%clk 0:01:26.1]} 19... Bxd5
{[%clk 0:01:04.8]} 20. Rxd5 {[%clk 0:01:27]} 20... Qe7 {[%clk 0:00:50.9]} 21.
Rad1 {[%clk 0:01:24.3]} 21... Nc7 {[%clk 0:00:22.1]} 22. R5d2 {[%clk 0:01:16.5]}
22... Ne6 {[%clk 0:00:21.6]} 23. Be3 {[%clk 0:01:12.2]} 23... Rad8 {[%clk
0:00:19.4]} 24. Qa4 {[%clk 0:00:39.2]} 24... Be5 {[%clk 0:00:10.3]} 25. Nb5
{[%clk 0:00:30]} 25... Rxd2 {[%clk 0:00:02.3]} 26. Rxd2 {[%clk 0:00:30.9]} 26...
Bg7 {[%clk 0:00:02.4]} 27. Qxa7 {[%clk 0:00:29.6]} 27... Qxa7 {[%clk 0:00:02.2]}
28. Nxa7 {[%clk 0:00:30.5]} 28... Kg8 {[%clk 0:00:01.4]} 29. Bxb6 {[%clk
0:00:29.4]} 29... Ng5 {[%clk 0:00:01.3]} 30. Kg2 {[%clk 0:00:28.2]} 30... Ne4
{[%clk 0:00:01.3]} 31. Re2 {[%clk 0:00:26.7]} 31... Nd6 {[%clk 0:00:01.4]} 32.
Bc5 {[%clk 0:00:26.3]} 32... Rd8 {[%clk 0:00:01.3]} 33. Nc6 {[%clk 0:00:25.8]}
1-0

[Event "*** Titled Tuesday Blitz"]
[Site "Chess.com"]
[Date "2020.04.14"]
[Round "1"]
[White "FCChelsea14"]
[Black "JacekDubiel"]
[Result "1-0"]
[WhiteElo "2818"]
[BlackElo "2431"]
[TimeControl "180+1"]
[EndTime "10:07:08 PDT"]
[Termination "FCChelsea14 won on time"]

1. d4 {[%clk 0:03:00.9]} 1... Nf6 {[%clk 0:02:59.5]} 2. c4 {[%clk 0:03:00.5]}
2... e6 {[%clk 0:02:59.7]} 3. Nf3 {[%clk 0:03:00.6]} 3... d5 {[%clk 0:02:59.2]}
4. g3 {[%clk 0:03:00.8]} 4... dxc4 {[%clk 0:02:59.2]} 5. Bg2 {[%clk 0:03:00.7]}
5... c6 {[%clk 0:02:59.6]} 6. O-O {[%clk 0:02:58.9]} 6... b5 {[%clk 0:02:58.7]}
7. Bg5 {[%clk 0:02:57.2]} 7... Bb7 {[%clk 0:02:57.7]} 8. Nbd2 {[%clk 0:02:51.3]}
8... Be7 {[%clk 0:02:57]} 9. b3 {[%clk 0:02:42.5]} 9... cxb3 {[%clk 0:02:56.4]}
10. Nxb3 {[%clk 0:02:42]} 10... Nbd7 {[%clk 0:02:31.9]} 11. Qc2 {[%clk
0:02:39.9]} 11... Rc8 {[%clk 0:02:21.3]} 12. Nc5 {[%clk 0:02:36.3]} 12... Bxc5
{[%clk 0:02:09.3]} 13. dxc5 {[%clk 0:02:35.9]} 13... Qe7 {[%clk 0:02:09.9]} 14.
Rac1 {[%clk 0:02:29.7]} 14... h6 {[%clk 0:02:07.4]} 15. Bxf6 {[%clk 0:02:24.4]}
15... Nxf6 {[%clk 0:02:06.9]} 16. Ne5 {[%clk 0:02:19.6]} 16... O-O {[%clk
0:02:05.3]} 17. Rfd1 {[%clk 0:02:19.3]} 17... Rfd8 {[%clk 0:02:02.6]} 18. Rxd8+
{[%clk 0:02:16.7]} 18... Qxd8 {[%clk 0:02:03.5]} 19. Rd1 {[%clk 0:02:14.3]}
19... Qc7 {[%clk 0:02:02.8]} 20. Rd6 {[%clk 0:02:11.2]} 20... Ne8 {[%clk
0:01:25.3]} 21. Rd7 {[%clk 0:01:28.3]} 21... Qxe5 {[%clk 0:01:24.8]} 22. Rxb7
{[%clk 0:01:28.1]} 22... Qa1+ {[%clk 0:01:25.3]} 23. Bf1 {[%clk 0:01:27.9]}
23... Rd8 {[%clk 0:01:25.3]} 24. Kg2 {[%clk 0:01:20]} 24... g6 {[%clk
0:00:30.7]} 25. e3 {[%clk 0:01:16.8]} 25... Rd1 {[%clk 0:00:30.3]} 26. Be2
{[%clk 0:00:33.3]} 26... Rg1+ {[%clk 0:00:30.1]} 27. Kh3 {[%clk 0:00:32.6]}
27... Qe5 {[%clk 0:00:21.3]} 28. Qd3 {[%clk 0:00:20.5]} 28... Nf6 {[%clk
0:00:08.4]} 29. Qd8+ {[%clk 0:00:13.5]} 29... Kg7 {[%clk 0:00:08.2]} 30. Rb8
{[%clk 0:00:14]} 30... Qf5+ {[%clk 0:00:04.8]} 31. g4 {[%clk 0:00:14]} 1-0

[Event "*** Titled Tuesday Blitz"]
[Site "Chess.com"]
[Date "2020.04.14"]
[Round "1"]
[White "MrChessSponge"]
[Black "BlueWizzard"]
[Result "0-1"]
[WhiteElo "2397"]
[BlackElo "2755"]
[TimeControl "180+1"]
[EndTime "10:07:09 PDT"]
[Termination "BlueWizzard won by resignation"]

1. Nf3 {[%clk 0:02:56.2]} 1... c6 {[%clk 0:03:00.9]} 2. c4 {[%clk 0:02:55.6]}
2... g6 {[%clk 0:03:01.8]} 3. e3 {[%clk 0:02:55.3]} 3... Bg7 {[%clk 0:03:02.7]}
4. Nc3 {[%clk 0:02:55.5]} 4... f5 {[%clk 0:03:02.6]} 5. d4 {[%clk 0:02:55.3]}
5... Nf6 {[%clk 0:03:03.2]} 6. Be2 {[%clk 0:02:53.1]} 6... O-O {[%clk
0:03:03.8]} 7. O-O {[%clk 0:02:52.7]} 7... d6 {[%clk 0:03:04.4]} 8. Rb1 {[%clk
0:02:52.9]} 8... Qe8 {[%clk 0:03:03.8]} 9. b4 {[%clk 0:02:52.3]} 9... e5 {[%clk
0:03:04.2]} 10. dxe5 {[%clk 0:02:48.1]} 10... dxe5 {[%clk 0:03:05.1]} 11. b5
{[%clk 0:02:47]} 11... e4 {[%clk 0:03:01.6]} 12. Ng5 {[%clk 0:02:38.5]} 12...
Qe7 {[%clk 0:02:40]} 13. Qb3 {[%clk 0:02:32.1]} 13... h6 {[%clk 0:02:39.5]} 14.
Ba3 {[%clk 0:02:27.9]} 14... c5 {[%clk 0:02:39.6]} 15. Nh3 {[%clk 0:02:25.8]}
15... g5 {[%clk 0:02:33.3]} 16. Nd5 {[%clk 0:02:19.2]} 16... Nxd5 {[%clk
0:02:33]} 17. cxd5 {[%clk 0:02:20.1]} 17... Qd6 {[%clk 0:02:31.4]} 18. Bb2
{[%clk 0:02:03.4]} 18... Nd7 {[%clk 0:02:24.1]} 19. Bxg7 {[%clk 0:02:00.1]}
19... Kxg7 {[%clk 0:02:25]} 20. Rbc1 {[%clk 0:01:58.7]} 20... Nf6 {[%clk
0:02:15.8]} 21. Rfd1 {[%clk 0:01:41]} 21... f4 {[%clk 0:02:09.1]} 22. Qc3 {[%clk
0:01:22.6]} 22... Bxh3 {[%clk 0:01:30.9]} 23. gxh3 {[%clk 0:01:22]} 23... f3
{[%clk 0:01:18.1]} 24. Bf1 {[%clk 0:01:21.5]} 24... Rac8 {[%clk 0:01:16.8]} 25.
b6 {[%clk 0:01:14.3]} 25... axb6 {[%clk 0:01:10.2]} 26. Rb1 {[%clk 0:01:14.4]}
26... Kf7 {[%clk 0:01:02]} 27. Qb3 {[%clk 0:01:09.6]} 27... Nd7 {[%clk
0:01:00.8]} 28. Bb5 {[%clk 0:01:06.1]} 28... Ne5 {[%clk 0:00:58.4]} 29. Bf1
{[%clk 0:01:03]} 29... c4 {[%clk 0:00:42.5]} 30. Qxb6 {[%clk 0:01:00.4]} 30...
Qxb6 {[%clk 0:00:42.3]} 31. Rxb6 {[%clk 0:01:01.3]} 31... c3 {[%clk 0:00:38.5]}
32. Rxb7+ {[%clk 0:01:00]} 32... Kf6 {[%clk 0:00:38.5]} 33. Rb6+ {[%clk
0:00:59.2]} 33... Kf5 {[%clk 0:00:38.7]} 34. Rc1 {[%clk 0:00:38.8]} 34... c2
{[%clk 0:00:28.7]} 35. d6 {[%clk 0:00:33.3]} 35... Nd3 {[%clk 0:00:25.8]} 36.
Rb5+ {[%clk 0:00:29.2]} 36... Ke6 {[%clk 0:00:23.4]} 37. Bxd3 {[%clk 0:00:24.2]}
37... exd3 {[%clk 0:00:24.3]} 38. d7 {[%clk 0:00:24.8]} 38... d2 {[%clk
0:00:20.5]} 39. dxc8=Q+ {[%clk 0:00:22.2]} 39... Rxc8 {[%clk 0:00:21.4]} 0-1

[Event "*** Titled Tuesday Blitz"]
[Site "Chess.com"]
[Date "2020.04.14"]
[Round "1"]
[White "CMS13"]
[Black "Alliswell998"]
[Result "0-1"]
[WhiteElo "2123"]
[BlackElo "2547"]
[TimeControl "180+1"]
[EndTime "10:07:09 PDT"]
[Termination "Alliswell998 won by checkmate"]

1. e4 {[%clk 0:03:00.9]} 1... c5 {[%clk 0:02:58.5]} 2. Nc3 {[%clk 0:02:59.8]}
2... a6 {[%clk 0:02:52.8]} 3. f4 {[%clk 0:02:58.9]} 3... b5 {[%clk 0:02:52.7]}
4. Nf3 {[%clk 0:02:46.7]} 4... Bb7 {[%clk 0:02:52.3]} 5. d4 {[%clk 0:02:19]}
5... cxd4 {[%clk 0:02:51.7]} 6. Qxd4 {[%clk 0:02:18.3]} 6... Nc6 {[%clk
0:02:52.3]} 7. Qf2 {[%clk 0:02:17.7]} 7... g6 {[%clk 0:02:50.3]} 8. Bd3 {[%clk
0:02:15]} 8... Bg7 {[%clk 0:02:47.6]} 9. O-O {[%clk 0:02:14.5]} 9... Nf6 {[%clk
0:02:43.2]} 10. h3 {[%clk 0:01:57.1]} 10... d6 {[%clk 0:02:40.8]} 11. Be3 {[%clk
0:01:56.9]} 11... O-O {[%clk 0:02:38.4]} 12. Qh4 {[%clk 0:01:53.3]} 12... e6
{[%clk 0:02:33.7]} 13. f5 {[%clk 0:01:51.5]} 13... exf5 {[%clk 0:02:12.5]} 14.
Bg5 {[%clk 0:01:38]} 14... fxe4 {[%clk 0:02:05.1]} 15. Nxe4 {[%clk 0:01:36.6]}
15... Qb6+ {[%clk 0:02:04.2]} 16. Kh1 {[%clk 0:01:33.5]} 16... Nxe4 {[%clk
0:02:00]} 17. Bxe4 {[%clk 0:01:33.5]} 17... Ne5 {[%clk 0:01:57.2]} 18. Nxe5
{[%clk 0:01:25.8]} 18... Bxe5 {[%clk 0:01:52.3]} 19. Bxb7 {[%clk 0:01:20.5]}
19... Qxb7 {[%clk 0:01:51.4]} 20. c3 {[%clk 0:01:19]} 20... Rfe8 {[%clk
0:01:46.5]} 21. Rae1 {[%clk 0:01:16.4]} 21... Bg7 {[%clk 0:01:43.7]} 22. Rd1
{[%clk 0:01:07.4]} 22... Re6 {[%clk 0:01:38.4]} 23. Rd3 {[%clk 0:01:06.7]} 23...
Rae8 {[%clk 0:01:34.4]} 24. Rdf3 {[%clk 0:01:06.6]} 24... Re2 {[%clk 0:01:31.9]}
25. Qf4 {[%clk 0:00:50.8]} 25... f5 {[%clk 0:01:22.2]} 26. Qxd6 {[%clk
0:00:46.1]} 26... h6 {[%clk 0:01:14.9]} 27. Bc1 {[%clk 0:00:40.8]} 27... Kh7
{[%clk 0:01:14.2]} 28. Rg3 {[%clk 0:00:38.6]} 28... Qf7 {[%clk 0:01:11.3]} 29.
Qxa6 {[%clk 0:00:32.1]} 29... h5 {[%clk 0:01:07.4]} 30. Qxb5 {[%clk 0:00:31.9]}
30... h4 {[%clk 0:01:08]} 31. Rgf3 {[%clk 0:00:29.6]} 31... R8e4 {[%clk
0:01:06]} 32. Rf4 {[%clk 0:00:25.4]} 32... Qe6 {[%clk 0:00:54]} 33. Rxe4 {[%clk
0:00:21.8]} 33... Qxe4 {[%clk 0:00:54.9]} 34. Rf3 {[%clk 0:00:18.2]} 34... Re1+
{[%clk 0:00:53]} 35. Rf1 {[%clk 0:00:18.4]} 35... Re2 {[%clk 0:00:51]} 36. Rf3
{[%clk 0:00:17.4]} 36... Qc2 {[%clk 0:00:45.3]} 37. Be3 {[%clk 0:00:12.5]} 37...
Rxg2 {[%clk 0:00:44.3]} 38. Bg1 {[%clk 0:00:12.7]} 38... Rg5 {[%clk 0:00:40.2]}
39. Qf1 {[%clk 0:00:11.8]} 39... Be5 {[%clk 0:00:38.8]} 40. Rf2 {[%clk
0:00:11.1]} 40... Qe4+ {[%clk 0:00:37.9]} 41. Rg2 {[%clk 0:00:11.2]} 41... Rg3
{[%clk 0:00:36.9]} 42. Qf2 {[%clk 0:00:11.4]} 42... Rxh3+ {[%clk 0:00:36.8]} 43.
Bh2 {[%clk 0:00:11]} 43... Rxh2+ {[%clk 0:00:36]} 44. Kg1 {[%clk 0:00:11.5]}
44... Qb1+ {[%clk 0:00:35]} 45. Qf1 {[%clk 0:00:10.8]} 45... Rh1+ {[%clk
0:00:35.5]} 46. Kxh1 {[%clk 0:00:10]} 46... Qxf1+ {[%clk 0:00:36.2]} 47. Rg1
{[%clk 0:00:10.7]} 47... Qh3# {[%clk 0:00:36]} 0-1

[Event "*** Titled Tuesday Blitz"]
[Site "Chess.com"]
[Date "2020.04.14"]
[Round "1"]
[White "rpragchess"]
[Black "renehp"]
[Result "1-0"]
[WhiteElo "2780"]
[BlackElo "2409"]
[TimeControl "180+1"]
[EndTime "10:07:10 PDT"]
[Termination "rpragchess won by resignation"]

1. e4 {[%clk 0:03:00]} 1... c5 {[%clk 0:03:00]} 2. Nf3 {[%clk 0:02:59.3]} 2...
d6 {[%clk 0:03:00.3]} 3. d4 {[%clk 0:02:58.8]} 3... cxd4 {[%clk 0:03:00.6]} 4.
Nxd4 {[%clk 0:02:59.7]} 4... Nf6 {[%clk 0:03:00.8]} 5. Nc3 {[%clk 0:03:00.4]}
5... a6 {[%clk 0:03:00.9]} 6. g3 {[%clk 0:03:00.2]} 6... e5 {[%clk 0:02:56.7]}
7. Nde2 {[%clk 0:03:00.1]} 7... Be6 {[%clk 0:02:53.7]} 8. Bg2 {[%clk 0:02:57.4]}
8... Nbd7 {[%clk 0:02:53.8]} 9. a4 {[%clk 0:02:56.9]} 9... Rc8 {[%clk
0:02:50.8]} 10. O-O {[%clk 0:02:53.8]} 10... Be7 {[%clk 0:02:50.9]} 11. h3
{[%clk 0:02:47.7]} 11... Nc5 {[%clk 0:02:49.6]} 12. Be3 {[%clk 0:02:42.5]} 12...
O-O {[%clk 0:02:47.8]} 13. a5 {[%clk 0:02:38.8]} 13... g6 {[%clk 0:02:40.9]} 14.
f4 {[%clk 0:02:35]} 14... Nfd7 {[%clk 0:02:39]} 15. f5 {[%clk 0:02:24.5]} 15...
Bc4 {[%clk 0:02:38.5]} 16. Nd5 {[%clk 0:01:56.1]} 16... Bxd5 {[%clk 0:02:34.5]}
17. exd5 {[%clk 0:01:55.9]} 17... Bg5 {[%clk 0:02:33.7]} 18. Bf2 {[%clk
0:01:50.8]} 18... b5 {[%clk 0:02:27.1]} 19. axb6 {[%clk 0:01:22.9]} 19... Nxb6
{[%clk 0:02:26.1]} 20. b4 {[%clk 0:01:19]} 20... Nca4 {[%clk 0:02:18.6]} 21. h4
{[%clk 0:01:03.7]} 21... Bf6 {[%clk 0:02:18.2]} 22. fxg6 {[%clk 0:00:53.6]}
22... fxg6 {[%clk 0:02:17.9]} 23. Bh3 {[%clk 0:00:52.7]} 23... Rc4 {[%clk
0:02:17.2]} 24. Be6+ {[%clk 0:00:52.7]} 24... Kg7 {[%clk 0:02:17]} 25. c3 {[%clk
0:00:52.6]} 25... Nxc3 {[%clk 0:02:12.8]} 26. Nxc3 {[%clk 0:00:53.5]} 26... Rxc3
{[%clk 0:02:13.6]} 27. Rxa6 {[%clk 0:00:53.5]} 27... Nc4 {[%clk 0:02:09.8]} 28.
Ra7+ {[%clk 0:00:45.1]} 28... Kh8 {[%clk 0:02:09.5]} 29. h5 {[%clk 0:00:43.5]}
29... gxh5 {[%clk 0:01:45.5]} 30. Qxh5 {[%clk 0:00:37.8]} 30... Bg7 {[%clk
0:01:45.7]} 31. Bf5 {[%clk 0:00:35.8]} 31... Rxf5 {[%clk 0:01:35]} 32. Qxf5
{[%clk 0:00:36.7]} 32... Nd2 {[%clk 0:01:25.1]} 33. Rfa1 {[%clk 0:00:30.6]}
33... Rf3 {[%clk 0:01:15.5]} 34. Ra8 {[%clk 0:00:12.7]} 34... Rxf5 {[%clk
0:01:11.9]} 35. Rxd8+ {[%clk 0:00:12.8]} 35... Bf8 {[%clk 0:01:12.4]} 36. Be3
{[%clk 0:00:12.8]} 36... Nf3+ {[%clk 0:01:10.6]} 37. Kg2 {[%clk 0:00:13]} 37...
Kg7 {[%clk 0:01:08.6]} 38. Ra7+ {[%clk 0:00:13]} 38... Kg6 {[%clk 0:01:07.7]}
39. b5 {[%clk 0:00:13.5]} 39... e4 {[%clk 0:01:04.8]} 40. b6 {[%clk 0:00:13.4]}
40... Rxd5 {[%clk 0:01:05.3]} 41. b7 {[%clk 0:00:12.6]} 41... Rc5 {[%clk
0:01:03.1]} 42. Bxc5 {[%clk 0:00:12]} 42... dxc5 {[%clk 0:01:03.3]} 43. b8=Q
{[%clk 0:00:12.1]} 43... Bd6 {[%clk 0:01:04.2]} 44. Qxd6+ {[%clk 0:00:12.1]}
44... Kf5 {[%clk 0:01:05.1]} 45. Rf7+ {[%clk 0:00:12.1]} 1-0